fUST/lending_fUST_20240621
["ID","MTS","AMOUNT","RATE_DAILY","PERIOD"]
[330005868,1718922650289,-566.62,0.00055068,120]
[330005869,1718922650298,-500.0,0.00055068,120]
[330005870,1718922650307,-542.53,0.00055068,120]
[330005871,1718922650316,-500.0,0.00055068,120]
[330005872,1718922650325,-1676.03,0.00055068,120]
[330005873,1718922650334,-1629.73,0.00055068,120]
[330005874,1718922650344,-54645.82,0.00055068,120]
[330005875,1718922650353,-1232.04,0.00055068,120]
[330005876,1718922650363,-1212.89,0.00055068,120]
[330005877,1718922650372,-500.0,0.00055068,120]
[330005878,1718922650382,-500.0,0.00055068,120]
[330005879,1718922650392,-1724.19,0.00055068,120]
[330005880,1718922650401,-500.0,0.00055068,120]
[330005881,1718922650410,-4346.32,0.00055068,21]
[330005882,1718922650419,-500.0,0.00055068,120]
[330005883,1718922650429,-2525.49,0.00055068,120]
[330005884,1718922650438,-1099.21,0.00055068,120]
[330005885,1718922650447,-500.0,0.00055068,120]
[330005886,1718922650456,-1103.11669,0.00055068,120]
[330005887,1718922650465,-1103.11669,0.00055068,120]
[330005888,1718922650474,-1103.11669,0.00055068,120]
[330005889,1718922650483,-1103.11669,0.00055068,120]
[330005890,1718922650493,-1103.11669,0.00055068,120]
[330005891,1718922650502,-7948.9,0.00055068,120]
[330005892,1718922650511,-1103.11669,0.00055068,120]
[330005893,1718922650520,-1103.11669,0.00055068,120]
[330005894,1718922650530,-1103.11669,0.00055068,120]
[330005895,1718922650539,-500.0,0.00055068,120]
[330005896,1718922650548,-2227.88,0.00055068,120]
[330005897,1718922650558,-1108.17,0.00055068,120]
[330005898,1718922650568,-8830.52,0.00055068,120]
[330005899,1718922650577,-832.25,0.00055068,120]
[330005900,1718922650586,-989.69,0.00055068,120]
[330005901,1718922650595,-500.0,0.00055068,120]
[330005902,1718922650605,-1949.93,0.00055068,120]
[330005903,1718922650614,-151.0,0.00055068,120]
[330005904,1718922650623,-500.0,0.00055068,120]
[330005905,1718922650632,-500.0,0.00055068,120]
[330005906,1718922650641,-532.52047771,0.00055068,120]
[330005907,1718922650651,-500.0,0.00055068,120]
[330005908,1718922650660,-500.0,0.00055068,120]
[330005909,1718922650669,-500.0,0.00055068,90]
[330005910,1718922650678,-500.0,0.00055068,120]
[330005911,1718922650687,-500.0,0.00055068,120]
[330005912,1718922650697,-1362.48,0.00055068,120]
[330005913,1718922650707,-588.52750699,0.00055068,120]
[330005914,1718922650716,-1322.53,0.00055068,120]
[330005915,1718922650725,-1689.96,0.00055068,120]
[330005916,1718922650734,-434.66526521,0.00055068,120]
[330005917,1718922650743,-793.9,0.00055068,120]
[330005918,1718922650752,-500.0,0.00055068,120]
[330005919,1718922650761,-500.0,0.00055068,120]
[330005920,1718922650770,-500.0,0.00055068,120]
[330005921,1718922650779,-1196.7,0.00055068,120]
[330005922,1718922650788,-23344.3,0.00055068,120]
[330005923,1718922650798,-817.67,0.00055068,120]
[330005924,1718922650807,-500.0,0.00055068,120]
[330005925,1718922650816,-500.0,0.00055068,120]
[330005926,1718922650826,-500.0,0.00055068,120]
[330005927,1718922650835,-2508.32,0.00055068,120]
[330005928,1718922650844,-1388.56,0.00055068,120]
[330005929,1718922650853,-715.53,0.00055068,120]
[330005930,1718922650936,-11112.4,0.00055068,120]
[330005931,1718922650947,-151.0,0.00055068,120]
[330005932,1718922650959,-500.0,0.00055068,120]
[330005933,1718922650969,-500.0,0.00055068,120]
[330005934,1718922650979,-500.0,0.00055068,120]
[330005935,1718922650987,-500.0,0.00055068,120]
[330005936,1718922650997,-579.99,0.00055068,120]
[330005937,1718922651006,-500.0,0.00055068,120]
[330005938,1718922651015,-500.0,0.00055068,7]
[330005939,1718922651025,-9343.64,0.00055068,120]
[330005940,1718922651034,-574.62,0.00055068,120]
[330005941,1718922651043,-647.09208893,0.00055068,120]
[330005942,1718922651052,-500.0,0.00055068,120]
[330005943,1718922651062,-500.0,0.00055068,120]
[330005944,1718922651071,-500.0,0.00055068,120]
[330005945,1718922651081,-500.0,0.00055068,120]
[330005946,1718922651089,-652.29,0.00055068,120]
[330005947,1718922651099,-855.03,0.00055068,120]
[330005948,1718922651110,-2343.5,0.00055068,120]
[330005949,1718922651119,-500.0,0.00055068,120]
[330005950,1718922651128,-748.05,0.00055068,120]
[330005951,1718922651137,-505.42810526,0.00055068,120]
[330005952,1718922651147,-500.0,0.00055068,120]
[330005953,1718922651156,-500.0,0.00055068,120]
[330005954,1718922651165,-5684.29,0.00055068,120]
[330005955,1718922651174,-500.0,0.00055068,120]
[330005956,1718922651183,-500.0,0.00055068,120]
[330005957,1718922651195,-1306.00868,0.00055068,120]
[330005958,1718922651209,-500.0,0.00055068,120]
[330005959,1718922651219,-6107.6,0.00055068,120]
[330005960,1718922651228,-1306.00868,0.00055068,120]
[330005961,1718922651239,-500.0,0.00055068,120]
[330005962,1718922651248,-1992.82,0.00055068,120]
[330005963,1718922651258,-151.0,0.00055068,120]
[330005964,1718922651268,-500.0,0.00055068,120]
[330005965,1718922651279,-500.0,0.00055068,120]
[330005966,1718922651288,-1405.54,0.00055068,120]
[330005967,1718922651298,-153.85756,0.00055068,120]
[330005968,1718922651307,-309.61709953,0.00055068,120]
[330005969,1718922651317,-153.85756,0.00055068,120]
[330005970,1718922651326,-500.0,0.00055068,120]
[330005971,1718922651335,-500.0,0.00055068,120]
[330005972,1718922651345,-500.0,0.00055068,120]
[330005973,1718922651354,-589.31,0.00055068,120]
[330005974,1718922651363,-500.0,0.00055068,120]
[330005975,1718922651372,-500.0,0.00055068,120]
[330005976,1718922651382,-500.0,0.00055068,120]
[330005977,1718922651391,-151.0,0.00055068,120]
[330005978,1718922651401,-151.0,0.00055068,120]
[330005979,1718922651411,-841.54,0.00055068,120]
[330005980,1718922651421,-3115.9,0.00055068,120]
[330005981,1718922651431,-19445.48,0.00055068,120]
[330005982,1718922651440,-500.0,0.00055068,120]
[330005983,1718922651452,-3021.31,0.00055068,120]
[330005984,1718922651461,-500.0,0.00055068,120]
[330005985,1718922651470,-152.12889222,0.0005519,120]
[330005986,1718922651479,-152.62,0.00055242,120]
[330005987,1718922651488,-155.64,0.00055242,120]
[330005988,1718922651498,-171.26,0.00055242,120]
[330005989,1718922651508,-150.5,0.0005526,62]
[330005990,1718922651519,-287.67,0.0005527,62]
[330005991,1718922651528,-150.5,0.0005527,62]
[330005992,1718922651537,-150.5,0.0005528,62]
[330005993,1718922651546,-150.5,0.0005528,62]
[330005994,1718922651556,-500.0,0.00055288,120]
[330005995,1718922651567,-151.709039,0.00055289,120]
[330005996,1718922651576,-151.709039,0.00055289,120]
[330005997,1718922651587,-500.0,0.00055289,120]
[330005998,1718922651596,-581.71100496,0.00055289,120]
[330005999,1718922651605,-6357.58564466,0.0005529,120]
[330006032,1718923601169,-191.30504271,0.00017293,2]
[330006033,1718923631102,-1681.78377608,0.00017293,2]
[330006034,1718923631123,-300.0,0.00017387,2]
[330006035,1718923631145,-51.67063795,0.00017387,2]
[330006036,1718923637088,-371.96424736,0.00017387,2]
[330006037,1718923750100,-300.0,0.00017291,2]
[330006038,1718923750130,-144.4786699,0.00017292,2]
[330006039,1718923750255,-444.4786699,0.00017292,2]
[330006040,1718923750297,-214.15924975,0.00017292,2]
[330006041,1718923750332,-444.4786699,0.00017292,2]
[330006042,1718923753395,-9864.46156541,0.00017292,2]
[330006043,1718923753417,-1582.96582005,0.00017292,2]
[330006044,1718923753440,-42155.97323627,0.00017383,2]
[330006045,1718923753463,-190.97162396,0.000174,2]
[330006046,1718923753485,-515.72205083,0.000175,2]
[330006047,1718923753508,-271.0,0.0001902,2]
[330006048,1718923753531,-5000.0,0.0002,3]
[330006049,1718923753558,-2157.69787551,0.00021,2]
[330006050,1718923753580,-182.141746,0.00021096,2]
[330006051,1718923753601,-575.7962338,0.00023029,2]
[330006052,1718923753624,-163.349085,0.00023685,2]
[330006053,1718923753649,-220.445079,0.00024839,2]
[330006054,1718923753672,-7076.56596773,0.00028726,2]
[330006055,1718923754098,-17823.43403227,0.00028726,2]
[330006056,1718923754119,-1034.75557184,0.0004,2]
[330006057,1718923754142,-615.30102124,0.0004,4]
[330006058,1718923754163,-163.349085,0.00043294,2]
[330006059,1718923754185,-4252.60841983,0.00045,120]
[330006060,1718923758644,1582.96582005,0.00017382,2]
[330006063,1718923829253,182.141746,0.00021096,2]
[330006211,1718923839140,-534.87830761,0.000295,2]
[330006213,1718923839151,-150.0,0.00051,85]
[330006215,1718923839161,-152.36268791,0.00052968,4]
[330006217,1718923839172,-21662.1949331,0.000533,120]
[330006219,1718923839182,-150.0,0.00053722,120]
[330006220,1718923839192,-8866.0,0.000543,120]
[330006221,1718923839202,-8252.24012956,0.000547,86]
[330006222,1718923839211,-8252.24012956,0.000547,86]
[330006223,1718923839222,-8252.24012956,0.000547,86]
[330006224,1718923839232,-8252.24012956,0.000547,86]
[330006225,1718923839242,-8252.24012956,0.000547,86]
[330006226,1718923839252,-8252.24012956,0.000547,86]
[330006227,1718923839263,-3000.0,0.000547,86]
[330006228,1718923839273,-964.18,0.00054793,120]
[330006229,1718923839283,-512.38342574,0.00054794,120]
[330006230,1718923839294,-500.0,0.00054794,120]
[330006231,1718923839304,-500.0,0.00054794,120]
[330006232,1718923839314,-500.0,0.00054794,120]
[330006233,1718923839325,-500.0,0.00054794,120]
[330006234,1718923839335,-500.0,0.00054794,120]
[330006235,1718923839345,-500.0,0.00054794,120]
[330006236,1718923839355,-430.0848862,0.00054794,120]
[330006237,1718923839364,-500.0,0.00054794,120]
[330006238,1718923839375,-500.0,0.00054794,120]
[330006239,1718923839384,-500.0,0.00054794,120]
[330006240,1718923839395,-500.0,0.00054794,120]
[330006241,1718923839405,-629.59,0.00054794,120]
[330006242,1718923839415,-500.0,0.00054794,120]
[330006243,1718923839425,-500.0,0.00054794,120]
[330006244,1718923839435,-517.20493663,0.00054794,120]
[330006245,1718923839445,-500.0,0.00054794,120]
[330006246,1718923839455,-500.0,0.00054794,120]
[330006247,1718923839465,-500.0,0.00054794,120]
[330006248,1718923839476,-500.0,0.00054794,120]
[330006249,1718923839486,-500.0,0.00054794,120]
[330006250,1718923839496,-2380.52,0.00054794,120]
[330006251,1718923839506,-500.0,0.00054794,120]
[330006252,1718923839516,-502.77305825,0.00054794,120]
[330006253,1718923839526,-500.0,0.00054794,120]
[330006254,1718923839536,-500.0,0.00054794,120]
[330006255,1718923839546,-500.0,0.00054794,120]
[330006256,1718923839556,-694.38,0.00054794,120]
[330006257,1718923839566,-500.0,0.00054794,120]
[330006258,1718923839576,-500.0,0.00054794,120]
[330006259,1718923839592,-771.41,0.00054794,120]
[330006260,1718923839602,-322.50051869,0.00054794,120]
[330006261,1718923839612,-2044.35,0.00054794,120]
[330006262,1718923839623,-500.0,0.00054794,120]
[330006263,1718923839633,-500.0,0.00054794,120]
[330006264,1718923839644,-2433.02,0.00054794,120]
[330006265,1718923839654,-500.0,0.00054794,120]
[330006266,1718923839665,-500.0,0.00054794,120]
[330006267,1718923839783,-500.0,0.00054794,120]
[330006268,1718923839795,-500.0,0.00054794,120]
[330006269,1718923839805,-1298.93,0.00054794,120]
[330006270,1718923839815,-737.03,0.00054794,120]
[330006271,1718923839825,-500.0,0.00054794,2]
[330006272,1718923839835,-500.0,0.00054794,120]
[330006273,1718923839845,-500.0,0.00054794,120]
[330006274,1718923839854,-503.25,0.00054794,7]
[330006275,1718923839864,-594.04684314,0.00054794,120]
[330006276,1718923839874,-500.0,0.00054794,120]
[330006277,1718923839884,-2062.13,0.00054794,120]
[330006278,1718923839893,-500.0,0.00054794,120]
[330006279,1718923839903,-500.0,0.00054794,120]
[330006280,1718923839913,-500.0,0.00054794,120]
[330006281,1718923839923,-500.0,0.00054794,120]
[330006282,1718923839933,-500.0,0.00054794,120]
[330006283,1718923839942,-500.0,0.00054794,120]
[330006284,1718923839952,-500.0,0.00054794,120]
[330006285,1718923839962,-500.0,0.00054794,120]
[330006286,1718923839973,-500.0,0.00054794,120]
[330006287,1718923839983,-1646.17,0.00054794,120]
[330006288,1718923839994,-500.0,0.00054794,120]
[330006289,1718923840008,-500.0,0.00054794,120]
[330006290,1718923840018,-528.60984917,0.00054794,120]
[330006291,1718923840028,-889.75,0.00054794,120]
[330006292,1718923840038,-366.48415421,0.00054794,120]
[330006293,1718923840047,-591.06,0.00054794,120]
[330006294,1718923840057,-500.0,0.00054794,7]
[330006295,1718923840066,-1484.9,0.00054794,120]
[330006296,1718923840076,-500.0,0.00054794,120]
[330006297,1718923840086,-500.0,0.00054794,120]
[330006298,1718923840095,-597.94,0.00054794,120]
[330006299,1718923840105,-700.66,0.00054794,120]
[330006300,1718923840115,-500.0,0.00054794,120]
[330006301,1718923840125,-500.0,0.00054794,120]
[330006302,1718923840135,-500.0,0.00054794,120]
[330006303,1718923840145,-738.04,0.00054794,120]
[330006304,1718923840156,-540.2,0.00054794,120]
[330006306,1718923840168,-500.0,0.00054794,120]
[330006307,1718923840178,-500.0,0.00054794,120]
[330006308,1718923840188,-500.0,0.00054794,120]
[330006309,1718923840198,-500.0,0.00054794,120]
[330006310,1718923840208,-500.0,0.00054794,120]
[330006311,1718923840218,-500.0,0.00054794,120]
[330006312,1718923840230,-594.65071846,0.00054794,120]
[330006313,1718923840239,-798.72,0.00054794,120]
[330006314,1718923840248,-500.0,0.00054794,120]
[330006315,1718923840257,-500.0,0.00054794,4]
[330006316,1718923840266,-500.0,0.00054794,120]
[330006317,1718923840275,-500.0,0.00054794,120]
[330006318,1718923840285,-500.0,0.00054794,120]
[330006319,1718923840295,-1388.0,0.00054794,120]
[330006320,1718923840305,-500.0,0.00054794,120]
[330006321,1718923840315,-1000.0,0.00054794,120]
[330006322,1718923840324,-425.5353629,0.00054794,120]
[330006323,1718923840334,-596.28,0.00054794,120]
[330006324,1718923840344,-500.0,0.00054794,120]
[330006326,1718923840354,-500.0,0.00054794,120]
[330006327,1718923840364,-500.0,0.00054794,120]
[330006328,1718923840373,-575.44,0.00054794,120]
[330006329,1718923840383,-609.38,0.00054794,120]
[330006330,1718923840393,-354.84866601,0.00054794,120]
[330006331,1718923840402,-1176.23,0.00054794,120]
[330006332,1718923840412,-505.41390794,0.00054794,120]
[330006333,1718923840421,-500.0,0.00054794,120]
[330006334,1718923840431,-500.0,0.00054794,120]
[330006335,1718923840440,-1468.09,0.00054794,120]
[330006336,1718923840450,-1547.88,0.00054794,120]
[330006337,1718923840459,-2989.52,0.00054794,120]
[330006338,1718923840469,-500.0,0.00054794,120]
[330006339,1718923840479,-500.0,0.00054794,60]
[330006340,1718923840488,-500.0,0.00054794,120]
[330006341,1718923840498,-610.59,0.00054794,120]
[330006342,1718923840512,-519.4,0.00054794,120]
[330006343,1718923840529,-169.92105506,0.00054794,120]
[330006344,1718923840546,-500.0,0.00054794,120]
[330006345,1718923840557,-500.0,0.00054794,120]
[330006346,1718923840572,-500.0,0.00054794,120]
[330006349,1718923840603,-500.0,0.00054794,120]
[330006352,1718923840626,-500.0,0.00054794,120]
[330006355,1718923840644,-500.0,0.00054794,120]
[330006357,1718923840663,-500.0,0.00054794,120]
[330006358,1718923840681,-500.0,0.00054794,120]
[330006359,1718923840694,-500.0,0.00054794,120]
[330006361,1718923840711,-500.0,0.00054794,120]
[330006362,1718923840728,-500.0,0.00054794,120]
[330006363,1718923840745,-44811.18153055,0.00054794,120]
[330006364,1718923840767,-1104.43430083,0.00054794,120]
[330006365,1718923840783,-5222.20416862,0.00054794,120]
[330006366,1718923840797,-1150.2,0.00054794,120]
[330006367,1718923840811,-500.0,0.00054794,120]
[330006368,1718923840826,-1119.99,0.00054794,120]
[330006369,1718923840842,-621.01,0.00054794,120]
[330006370,1718923840858,-1578.03,0.00054794,120]
[330006371,1718923840874,-1546.32505319,0.00054794,120]
[330006379,1718923843509,-55.01494681,0.00054794,120]
[330006383,1718923843522,-500.0,0.00054794,120]
[330006385,1718923843534,-257.95,0.00054794,120]
[330006387,1718923843546,-500.0,0.00054794,120]
[330006389,1718923843559,-1153.48,0.00054794,120]
[330006392,1718923843571,-506.35902007,0.00054794,120]
[330006394,1718923843584,-147.29254881,0.00054794,21]
[330006398,1718923843653,-3940.99745119,0.00054794,21]
[330006400,1718923843666,-500.0,0.00054794,120]
[330006401,1718923843678,-7369.82,0.00054794,120]
[330006402,1718923843689,-599.97,0.00054794,120]
[330006403,1718923843701,-500.0,0.00054794,120]
[330006404,1718923843714,-1252.67,0.00054794,120]
[330006405,1718923843725,-500.0,0.00054794,120]
[330006406,1718923843738,-500.0,0.00054794,120]
[330006407,1718923843750,-845.36,0.00054794,120]
[330006408,1718923843763,-500.0,0.00054794,120]
[330006409,1718923843775,-506.42,0.00054794,120]
[330006410,1718923843786,-500.0,0.00054794,120]
[330006411,1718923843797,-8198.81,0.00054794,120]
[330006412,1718923843809,-1049.5,0.00054794,120]
[330006413,1718923843821,-500.0,0.00054794,30]
[330006414,1718923843833,-500.0,0.00054794,90]
[330006416,1718923843846,-268.52800863,0.00054794,20]
[330006418,1718923843857,-684.67,0.00054794,120]
[330006420,1718923843869,-500.0,0.00054794,120]
[330006423,1718923843881,-953.96,0.00054794,120]
[330006425,1718923843893,-500.0,0.00054794,120]
[330006426,1718923843902,-500.0,0.00054794,120]
[330006427,1718923843912,-500.0,0.00054794,120]
[330006428,1718923843921,-500.0,0.00054794,120]
[330006429,1718923843931,-1569.97,0.00054794,120]
[330006430,1718923843940,-500.0,0.00054794,120]
[330006431,1718923843951,-1291.01,0.00054794,120]
[330006435,1718923844086,-2362.69,0.00054794,120]
[330006436,1718923844104,-727.74,0.00054794,120]
[330006437,1718923844114,-500.0,0.00054794,2]
[330006438,1718923844123,-358.62454015,0.00054794,120]
[330006439,1718923844136,-162.90062195,0.00054794,120]
[330006440,1718923844145,-500.0,0.00054794,120]
[330006441,1718923844154,-22298.38,0.00054794,120]
[330006442,1718923844163,-1096.97,0.00054794,120]
[330006443,1718923844172,-2042.22,0.00054794,120]
[330006444,1718923844181,-500.0,0.00054794,120]
[330006445,1718923844190,-2335.86,0.00054794,120]
[330006446,1718923844199,-8669.17,0.00054794,120]
[330006447,1718923844208,-500.0,0.00054794,120]
[330006448,1718923844216,-10186.37,0.00054794,120]
[330006449,1718923844226,-1831.04,0.00054794,120]
[330006450,1718923844235,-439.65452609,0.00054794,120]
[330006451,1718923844244,-500.0,0.00054794,120]
[330006452,1718923844253,-500.0,0.00054794,120]
[330006453,1718923844263,-500.0,0.00054794,120]
[330006455,1718923844272,-500.0,0.00054794,120]
[330006456,1718923844282,-531.66,0.00054794,120]
[330006458,1718923844291,-500.0,0.00054794,120]
[330006459,1718923844300,-503.36417828,0.00054794,120]
[330006460,1718923844309,-500.0,0.00054794,120]
[330006461,1718923844319,-500.0,0.00054794,120]
[330006462,1718923844328,-762.9,0.00054794,120]
[330006463,1718923844338,-749.53,0.00054794,120]
[330006464,1718923844348,-500.0,0.00054794,120]
[330006465,1718923844358,-500.0,0.00054794,120]
[330006466,1718923844367,-783.77,0.00054794,120]
[330006467,1718923844377,-1326.51,0.00054794,120]
[330006468,1718923844386,-1212.32,0.00054794,120]
[330006469,1718923844396,-777.01,0.00054794,120]
[330006470,1718923844404,-503.66202572,0.00054794,120]
[330006471,1718923844414,-500.0,0.00054794,120]
[330006472,1718923844423,-29.32632888,0.00054794,120]
[330006473,1718923844493,-470.67367112,0.00054794,120]
[330006474,1718923844502,-712.26,0.00054794,120]
[330006475,1718923844511,-286.29158041,0.00054794,120]
[330006498,1718923846951,-213.70841959,0.00054794,120]
[330006499,1718923846960,-526.74,0.00054794,120]
[330006500,1718923846972,-36.10444894,0.00054794,120]
[330006501,1718923895154,161.31842723,0.00021069,2]
[330006502,1718923897184,2117.1091907,0.00041572,2]
[330006525,1718924838097,-187.5,0.00021096,2]
[330006526,1718924838119,-815.61915317,0.00023,7]
[330006527,1718924844147,-4184.38084683,0.00023,7]
[330006528,1718924844168,-300.0,0.00023899,2]
[330006529,1718924844188,-5000.0,0.000239,11]
[330006530,1718924844208,-1089.76861258,0.00026,19]
[330006531,1718924852094,-3910.23138742,0.00026,19]
[330006532,1718924852115,-419.0,0.00026289,2]
[330006533,1718924852135,-152.36268791,0.00039472,2]
[330006534,1718924852155,-311.6465988,0.00039698,2]
[330006535,1718924852179,-457.03278076,0.00039836,7]
[330006536,1718924852199,-500.0,0.00039836,31]
[330006537,1718924852221,-500.0,0.00039836,31]
[330006538,1718924852243,-500.0,0.00039836,31]
[330006539,1718924852264,-562.25305662,0.00039836,31]
[330006540,1718924852287,-500.0,0.00039836,31]
[330006541,1718924852311,-2804.08479091,0.00039837,2]
[330006542,1718924951149,-5000.0,0.00033,30]
[330006543,1718924951172,-180.7878259,0.00034655,2]
[330006544,1718924951195,-300.0,0.00034999,2]
[330006545,1718924951221,-4491.97595173,0.00035,60]
[330006546,1718924963103,-508.02404827,0.00035,60]
[330006547,1718924963125,-154.40516876,0.00036571,7]
[330006548,1718924963148,-151.0,0.00039836,31]
[330006549,1718924963171,-22095.91520909,0.00039837,2]
[330006550,1718924963191,-151.0,0.00039837,2]
[330006551,1718924963214,-284.69478407,0.00039999,31]
[330006552,1718924963236,-5000.0,0.0004,90]
[330006553,1718924963257,-300.0,0.0004,120]
[330006554,1718924963279,-190.97162396,0.00043082,2]
[330006555,1718924963301,-173.157742,0.00043182,2]
[330006556,1718924963325,-152.36268791,0.00044472,2]
[330006557,1718924963347,-5000.0,0.00045,120]
[330006559,1718924998211,300.0,0.0004,120]
[330006560,1718925018567,185.356698,0.00021096,2]
[330006561,1718925026858,406.9,0.00042,120]
[330006577,1718925032103,-152.36268791,0.00049472,2]
[330006579,1718925032112,-2000.0,0.0005,120]
[330006581,1718925032122,-2848.17621209,0.0005,120]
[330006605,1718925038624,-2151.82378791,0.0005,120]
[330006606,1718925038636,-300.0,0.0005,120]
[330006607,1718925038646,-185.356698,0.00050068,2]
[330006608,1718925038656,-393.089185,0.00050188,30]
[330006609,1718925038667,-225.22537,0.00050188,30]
[330006610,1718925038676,-491.40344127,0.00050389,2]
[330006611,1718925038686,-393.089185,0.00050815,30]
[330006612,1718925038849,-225.22537,0.00050815,30]
[330006613,1718925038859,-393.089185,0.00051443,30]
[330006614,1718925038869,-225.22537,0.00051443,30]
[330006615,1718925038879,-393.089185,0.0005207,30]
[330006616,1718925038888,-225.22537,0.0005207,30]
[330006617,1718925038898,-1751.0,0.00052608,2]
[330006618,1718925038907,-393.089185,0.00052697,30]
[330006619,1718925038917,-225.22537,0.00052697,30]
[330006620,1718925038927,-5060.75402454,0.00052802,120]
[330006621,1718925038936,-5060.75402454,0.00053071,120]
[330006622,1718925038945,-5060.75402454,0.00053399,120]
[330006623,1718925038959,-205.21811939,0.00053413,28]
[330006624,1718925038968,-5060.75402454,0.00053447,120]
[330006625,1718925038977,-154.40516876,0.00053513,60]
[330006626,1718925038987,-501.0,0.00053722,120]
[330006627,1718925038996,-335.2,0.00053861,90]
[330006628,1718925039006,-152.0,0.00053861,90]
[330006629,1718925039015,-5060.75402454,0.00053886,120]
[330006630,1718925039026,-5060.75402454,0.00054127,120]
[330006631,1718925039038,-8866.0,0.000543,120]
[330006632,1718925039048,-5060.75402454,0.00054308,120]
[330006633,1718925039058,-188.81,0.00054784,62]
[330006634,1718925039068,-347.97,0.00054784,3]
[330006635,1718925039078,-5060.75402454,0.0005479,120]
[330006636,1718925039088,-1047.52,0.00054793,120]
[330006637,1718925039098,-500.0,0.00054794,120]
[330006638,1718925039108,-500.0,0.00054794,120]
[330006639,1718925039119,-500.0,0.00054794,120]
[330006640,1718925039128,-500.0,0.00054794,120]
[330006641,1718925039138,-500.0,0.00054794,120]
[330006642,1718925039148,-500.0,0.00054794,120]
[330006643,1718925039158,-500.0,0.00054794,120]
[330006644,1718925039168,-594.04684314,0.00054794,120]
[330006645,1718925039179,-500.0,0.00054794,120]
[330006646,1718925039189,-500.0,0.00054794,120]
[330006647,1718925039199,-528.60984917,0.00054794,120]
[330006648,1718925039210,-500.0,0.00054794,120]
[330006649,1718925039220,-500.0,0.00054794,120]
[330006650,1718925039231,-500.0,0.00054794,120]
[330006651,1718925039240,-500.0,0.00054794,120]
[330006652,1718925039250,-500.0,0.00054794,120]
[330006653,1718925039260,-597.94,0.00054794,120]
[330006654,1718925039270,-366.48415421,0.00054794,120]
[330006655,1718925039282,-878.0,0.00054794,120]
[330006656,1718925039292,-500.0,0.00054794,7]
[330006657,1718925039303,-500.0,0.00054794,120]
[330006658,1718925039314,-500.0,0.00054794,120]
[330006659,1718925039323,-500.0,0.00054794,4]
[330006660,1718925039334,-500.0,0.00054794,120]
[330006661,1718925039345,-500.0,0.00054794,120]
[330006662,1718925039355,-1551.54,0.00054794,120]
[330006663,1718925039365,-500.0,0.00054794,120]
[330006664,1718925039374,-540.2,0.00054794,120]
[330006665,1718925039385,-500.0,0.00054794,120]
[330006666,1718925039395,-322.50051869,0.00054794,120]
[330006667,1718925039408,-500.0,0.00054794,120]
[330006668,1718925039418,-857.63,0.00054794,120]
[330006669,1718925039428,-505.41390794,0.00054794,120]
[330006670,1718925039438,-500.0,0.00054794,120]
[330006671,1718925039448,-575.44,0.00054794,120]
[330006672,1718925039459,-798.55,0.00054794,120]
[330006673,1718925039469,-500.0,0.00054794,120]
[330006674,1718925039481,-500.0,0.00054794,120]
[330006675,1718925039491,-2252.58,0.00054794,120]
[330006676,1718925039501,-425.5353629,0.00054794,120]
[330006677,1718925039512,-2645.32,0.00054794,120]
[330006678,1718925039523,-500.0,0.00054794,120]